[Event "*** Titled Tuesday Blitz"]
[Site "Chess.com"]
[Date "2019.10.01"]
[Round "10"]
[White "ChessBitl"]
[Black "MikeSailer"]
[Result "0-1"]
[WhiteElo "2265"]
[BlackElo "2098"]
[TimeControl "180+2"]
[EndTime "15:24:36 PDT"]
[Termination "MikeSailer won by checkmate"]

1. e4 {[%clk 0:02:58.3]} 1... d5 {[%clk 0:03:00.6]} 2. exd5 {[%clk 0:02:58.8]}
2... Qxd5 {[%clk 0:03:01.9]} 3. Nf3 {[%clk 0:03:00.4]} 3... Bg4 {[%clk
0:03:02.5]} 4. Be2 {[%clk 0:03:01.9]} 4... Nc6 {[%clk 0:03:03.9]} 5. O-O {[%clk
0:03:03.4]} 5... O-O-O {[%clk 0:03:05.4]} 6. d3 {[%clk 0:03:01.6]} 6... e5
{[%clk 0:03:06.6]} 7. Be3 {[%clk 0:03:02.4]} 7... Nf6 {[%clk 0:03:06.4]} 8. h3
{[%clk 0:03:03]} 8... Bxf3 {[%clk 0:02:59.2]} 9. Bxf3 {[%clk 0:03:03.7]} 9...
Qd7 {[%clk 0:03:00.7]} 10. Nc3 {[%clk 0:02:58.6]} 10... Kb8 {[%clk 0:03:02]} 11.
Ne4 {[%clk 0:02:53.6]} 11... Nd5 {[%clk 0:02:52.7]} 12. Be2 {[%clk 0:02:43.7]}
12... Nd4 {[%clk 0:02:44.8]} 13. Bxd4 {[%clk 0:02:40.5]} 13... exd4 {[%clk
0:02:45.6]} 14. Bf3 {[%clk 0:02:37.5]} 14... f5 {[%clk 0:02:40.9]} 15. Nd2
{[%clk 0:02:31]} 15... g5 {[%clk 0:02:42.3]} 16. Nc4 {[%clk 0:02:27.5]} 16...
Rg8 {[%clk 0:02:26.8]} 17. Ne5 {[%clk 0:02:22.3]} 17... Qg7 {[%clk 0:02:17.4]}
18. Re1 {[%clk 0:02:15.4]} 18... Nf4 {[%clk 0:02:10.5]} 19. Qd2 {[%clk
0:02:08.1]} 19... h5 {[%clk 0:01:53.6]} 20. Qb4 {[%clk 0:02:05.4]} 20... Bxb4
{[%clk 0:01:53.5]} 21. c3 {[%clk 0:01:43.9]} 21... Bd6 {[%clk 0:01:40.2]} 22.
cxd4 {[%clk 0:01:41.2]} 22... Bxe5 {[%clk 0:01:37.5]} 23. dxe5 {[%clk
0:01:37.9]} 23... Nxd3 {[%clk 0:01:38.7]} 24. Re3 {[%clk 0:01:34]} 24... Nxe5
{[%clk 0:01:38.5]} 25. Rae1 {[%clk 0:01:34]} 25... Nxf3+ {[%clk 0:01:35.6]} 26.
gxf3 {[%clk 0:01:35.6]} 26... b6 {[%clk 0:01:35.4]} 27. Kg2 {[%clk 0:01:29.7]}
27... Qxb2 {[%clk 0:01:35.7]} 28. R1e2 {[%clk 0:01:29]} 28... Qd4 {[%clk
0:01:32.4]} 29. Re7 {[%clk 0:01:27.4]} 29... g4 {[%clk 0:01:33.1]} 30. hxg4
{[%clk 0:01:26.2]} 30... hxg4 {[%clk 0:01:34.1]} 31. f4 {[%clk 0:01:24.1]} 31...
Qd5+ {[%clk 0:01:33.4]} 32. Kg3 {[%clk 0:01:21.7]} 32... Qf3+ {[%clk 0:01:32.5]}
33. Kh4 {[%clk 0:01:22.7]} 33... Qh3# {[%clk 0:01:31.4]} 0-1

[Event "*** Titled Tuesday Blitz"]
[Site "Chess.com"]
[Date "2019.10.01"]
[Round "10"]
[White "SloLev"]
[Black "Saitama_Hero"]
[Result "0-1"]
[WhiteElo "2449"]
[BlackElo "2337"]
[TimeControl "180+2"]
[EndTime "15:24:46 PDT"]
[Termination "Saitama_Hero won by checkmate"]

1. d4 {[%clk 0:03:01.9]} 1... Nf6 {[%clk 0:02:59.8]} 2. Bf4 {[%clk 0:03:00.5]}
2... c5 {[%clk 0:02:58.1]} 3. d5 {[%clk 0:03:00.8]} 3... e6 {[%clk 0:02:51.2]}
4. Nc3 {[%clk 0:03:00.2]} 4... a6 {[%clk 0:02:48.8]} 5. e4 {[%clk 0:02:55.2]}
5... b5 {[%clk 0:02:46.8]} 6. e5 {[%clk 0:02:49.9]} 6... Nxd5 {[%clk 0:02:47]}
7. Nxd5 {[%clk 0:02:50.2]} 7... exd5 {[%clk 0:02:48.9]} 8. Qxd5 {[%clk
0:02:51.2]} 8... Nc6 {[%clk 0:02:48.9]} 9. Nf3 {[%clk 0:02:44.8]} 9... Bb7
{[%clk 0:02:47.6]} 10. O-O-O {[%clk 0:02:45.1]} 10... Be7 {[%clk 0:02:46.7]} 11.
Bd3 {[%clk 0:02:41.8]} 11... Na5 {[%clk 0:02:40.3]} 12. Be4 {[%clk 0:01:54.4]}
12... Bxd5 {[%clk 0:02:29.2]} 13. Bxd5 {[%clk 0:01:56.3]} 13... Rc8 {[%clk
0:02:28.2]} 14. Rhe1 {[%clk 0:01:56.6]} 14... O-O {[%clk 0:02:28.1]} 15. Be4
{[%clk 0:01:45.2]} 15... Nc4 {[%clk 0:02:19.9]} 16. b3 {[%clk 0:01:42.5]} 16...
Nb6 {[%clk 0:02:17.5]} 17. g4 {[%clk 0:01:38.3]} 17... c4 {[%clk 0:02:17.3]} 18.
Kb1 {[%clk 0:01:31.5]} 18... Qc7 {[%clk 0:02:09.9]} 19. Nd4 {[%clk 0:01:29.2]}
19... g6 {[%clk 0:02:03.3]} 20. h4 {[%clk 0:01:28.3]} 20... Bc5 {[%clk
0:01:54.2]} 21. Nf5 {[%clk 0:01:21.9]} 21... gxf5 {[%clk 0:01:50.3]} 22. gxf5
{[%clk 0:01:23.8]} 22... Bxf2 {[%clk 0:01:51.2]} 23. Re2 {[%clk 0:01:22]} 23...
cxb3 {[%clk 0:01:45.5]} 24. axb3 {[%clk 0:01:15.9]} 24... Qc5 {[%clk 0:01:44.7]}
25. Rf1 {[%clk 0:01:12.2]} 25... Bd4 {[%clk 0:01:43.3]} 26. f6 {[%clk
0:01:07.8]} 26... Qc3 {[%clk 0:01:36.8]} 27. Rg1+ {[%clk 0:00:57.7]} 27... Kh8
{[%clk 0:01:36.6]} 28. Kc1 {[%clk 0:00:52]} 28... Qa1+ {[%clk 0:01:32.9]} 29.
Kd2 {[%clk 0:00:53.3]} 29... Qxg1 {[%clk 0:01:33.6]} 30. Bh6 {[%clk 0:00:54.8]}
30... Bc3+ {[%clk 0:01:30.8]} 31. Kd3 {[%clk 0:00:54.5]} 31... Qd4# {[%clk
0:01:32.4]} 0-1

[Event "*** Titled Tuesday Blitz"]
[Site "Chess.com"]
[Date "2019.10.01"]
[Round "10"]
[White "tteshan"]
[Black "Shubinkirill2003"]
[Result "1-0"]
[WhiteElo "2305"]
[BlackElo "2518"]
[TimeControl "180+2"]
[EndTime "15:24:57 PDT"]
[Termination "tteshan won by resignation"]

1. e4 {[%clk 0:02:59.9]} 1... e6 {[%clk 0:03:00.8]} 2. d4 {[%clk 0:03:00.2]}
2... d5 {[%clk 0:03:01.6]} 3. Nd2 {[%clk 0:02:59.1]} 3... Be7 {[%clk 0:03:02.5]}
4. Ngf3 {[%clk 0:02:56.8]} 4... Nf6 {[%clk 0:03:02.9]} 5. Bd3 {[%clk 0:02:56.9]}
5... c5 {[%clk 0:03:03.3]} 6. e5 {[%clk 0:02:54.4]} 6... Nfd7 {[%clk 0:03:03.6]}
7. c3 {[%clk 0:02:55.3]} 7... Nc6 {[%clk 0:03:04.5]} 8. O-O {[%clk 0:02:52.3]}
8... h5 {[%clk 0:03:04.8]} 9. Re1 {[%clk 0:02:46.8]} 9... g5 {[%clk 0:03:03.5]}
10. dxc5 {[%clk 0:02:48.1]} 10... g4 {[%clk 0:03:02.7]} 11. Nd4 {[%clk 0:02:49]}
11... Ndxe5 {[%clk 0:03:01.8]} 12. N2b3 {[%clk 0:02:48.8]} 12... Nxd3 {[%clk
0:02:55.3]} 13. Qxd3 {[%clk 0:02:49]} 13... Bd7 {[%clk 0:02:56.7]} 14. Bf4
{[%clk 0:02:35.5]} 14... Nxd4 {[%clk 0:02:47.8]} 15. cxd4 {[%clk 0:02:32.8]}
15... Bg5 {[%clk 0:02:29.8]} 16. Bd6 {[%clk 0:02:27.2]} 16... Qf6 {[%clk
0:02:28.5]} 17. Na5 {[%clk 0:02:22.9]} 17... Qh6 {[%clk 0:02:21.7]} 18. Nxb7
{[%clk 0:02:14.1]} 18... h4 {[%clk 0:02:16.7]} 19. b4 {[%clk 0:02:04.4]} 19...
a6 {[%clk 0:01:59.9]} 20. a4 {[%clk 0:02:03.2]} 20... h3 {[%clk 0:01:26.7]} 21.
g3 {[%clk 0:02:02.9]} 21... Bd2 {[%clk 0:01:19.3]} 22. Reb1 {[%clk 0:01:55.4]}
22... f5 {[%clk 0:01:12.1]} 23. b5 {[%clk 0:01:54.6]} 23... Kf7 {[%clk
0:01:08.8]} 24. c6 {[%clk 0:01:54.8]} 24... Be8 {[%clk 0:01:02.4]} 25. Be5
{[%clk 0:01:50]} 25... Rg8 {[%clk 0:01:02.7]} 26. Nd6+ {[%clk 0:01:50]} 26...
Kg6 {[%clk 0:01:03.1]} 27. Nxe8 {[%clk 0:01:48.1]} 27... Raxe8 {[%clk 0:01:02]}
28. b6 {[%clk 0:01:49.5]} 28... Ba5 {[%clk 0:00:34.9]} 29. b7 {[%clk 0:01:46.3]}
29... Rb8 {[%clk 0:00:35.3]} 30. c7 {[%clk 0:01:41.6]} 1-0

[Event "*** Titled Tuesday Blitz"]
[Site "Chess.com"]
[Date "2019.10.01"]
[Round "10"]
[White "PowerThinking2650"]
[Black "Samantha_Ross"]
[Result "0-1"]
[WhiteElo "2284"]
[BlackElo "2090"]
[TimeControl "180+2"]
[EndTime "15:25:13 PDT"]
[Termination "Samantha_Ross won by resignation"]

1. e4 {[%clk 0:03:01.9]} 1... c5 {[%clk 0:03:01.2]} 2. Nf3 {[%clk 0:03:02.1]}
2... d6 {[%clk 0:03:02.7]} 3. d4 {[%clk 0:03:02.1]} 3... cxd4 {[%clk 0:03:04.6]}
4. Nxd4 {[%clk 0:03:04]} 4... Nf6 {[%clk 0:03:06.5]} 5. Nc3 {[%clk 0:03:04.5]}
5... g6 {[%clk 0:03:08]} 6. Be3 {[%clk 0:03:02.6]} 6... Bg7 {[%clk 0:03:09.2]}
7. f3 {[%clk 0:03:04.1]} 7... O-O {[%clk 0:03:10.6]} 8. Qd2 {[%clk 0:03:05.7]}
8... Nc6 {[%clk 0:03:12.3]} 9. O-O-O {[%clk 0:03:03.9]} 9... Nxd4 {[%clk
0:03:13.8]} 10. Bxd4 {[%clk 0:03:04.5]} 10... Be6 {[%clk 0:03:15.7]} 11. Kb1
{[%clk 0:03:03]} 11... Qc7 {[%clk 0:03:17.2]} 12. g4 {[%clk 0:02:49.2]} 12...
Rfc8 {[%clk 0:03:17.5]} 13. h4 {[%clk 0:02:48.6]} 13... Qa5 {[%clk 0:03:18.2]}
14. a3 {[%clk 0:02:39.1]} 14... Rab8 {[%clk 0:03:19.2]} 15. h5 {[%clk
0:02:31.1]} 15... b5 {[%clk 0:03:19.8]} 16. hxg6 {[%clk 0:02:27.1]} 16... hxg6
{[%clk 0:03:21.7]} 17. g5 {[%clk 0:02:25.6]} 17... b4 {[%clk 0:03:21.4]} 18. Nd5
{[%clk 0:01:11]} 18... Nxd5 {[%clk 0:03:18.4]} 19. Bxg7 {[%clk 0:00:52]} 19...
Nc3+ {[%clk 0:03:13.1]} 20. Ka1 {[%clk 0:00:25.3]} 20... Kxg7 {[%clk 0:03:08.2]}
21. Qd4+ {[%clk 0:00:20.6]} 21... Qe5 {[%clk 0:03:07.3]} 22. Qxe5+ {[%clk
0:00:19.8]} 22... dxe5 {[%clk 0:03:09.2]} 23. bxc3 {[%clk 0:00:21.1]} 23... Rxc3
{[%clk 0:02:54.2]} 24. Rd3 {[%clk 0:00:17.5]} 24... Rxc2 {[%clk 0:02:41]} 25.
Kb1 {[%clk 0:00:18.6]} 25... Ra2 {[%clk 0:02:02.8]} 26. a4 {[%clk 0:00:09.7]}
26... b3 {[%clk 0:01:55.5]} 27. Bh3 {[%clk 0:00:10]} 27... b2 {[%clk 0:01:55.2]}
28. Bxe6 {[%clk 0:00:09.4]} 28... Ra1+ {[%clk 0:01:56.1]} 29. Kc2 {[%clk
0:00:10.7]} 29... Rxh1 {[%clk 0:01:56.7]} 30. Ba2 {[%clk 0:00:10.9]} 0-1

[Event "*** Titled Tuesday Blitz"]
[Site "Chess.com"]
[Date "2019.10.01"]
[Round "10"]
[White "chesstatour"]
[Black "Spring199"]
[Result "0-1"]
[WhiteElo "2046"]
[BlackElo "2340"]
[TimeControl "180+2"]
[EndTime "15:25:33 PDT"]
[Termination "Spring199 won by resignation"]

1. c4 {[%clk 0:03:01.9]} 1... e5 {[%clk 0:02:59.3]} 2. Nc3 {[%clk 0:03:01.1]}
2... Bb4 {[%clk 0:03:00.4]} 3. Nf3 {[%clk 0:03:00.6]} 3... Ne7 {[%clk
0:02:59.1]} 4. Nxe5 {[%clk 0:02:58]} 4... O-O {[%clk 0:02:59.1]} 5. g3 {[%clk
0:02:57.3]} 5... d6 {[%clk 0:02:56.2]} 6. Nd3 {[%clk 0:02:54.7]} 6... Bxc3
{[%clk 0:02:55.7]} 7. dxc3 {[%clk 0:02:40.1]} 7... Be6 {[%clk 0:02:57.1]} 8. b3
{[%clk 0:02:37.8]} 8... Qd7 {[%clk 0:02:54.9]} 9. Nf4 {[%clk 0:02:36.7]} 9...
Bg4 {[%clk 0:02:53.3]} 10. Bg2 {[%clk 0:02:34.2]} 10... Nbc6 {[%clk 0:02:53.7]}
11. O-O {[%clk 0:02:28.3]} 11... Ne5 {[%clk 0:02:53.1]} 12. Bxb7 {[%clk
0:02:18.9]} 12... Rab8 {[%clk 0:02:53.3]} 13. Bg2 {[%clk 0:02:18.1]} 13... Qf5
{[%clk 0:02:48.7]} 14. f3 {[%clk 0:02:13.1]} 14... g5 {[%clk 0:02:26.4]} 15.
fxg4 {[%clk 0:02:02.2]} 15... Qxg4 {[%clk 0:02:24.9]} 16. Bh3 {[%clk 0:01:44.2]}
16... gxf4 {[%clk 0:02:11.7]} 17. Bxg4 {[%clk 0:01:43.7]} 17... Nxg4 {[%clk
0:02:13.6]} 18. gxf4 {[%clk 0:01:33.8]} 18... Nf5 {[%clk 0:02:11.3]} 19. Qd3
{[%clk 0:01:25.1]} 19... Ng7 {[%clk 0:02:03.1]} 20. e4 {[%clk 0:01:10]} 20... f5
{[%clk 0:02:00.9]} 21. Bd2 {[%clk 0:00:55.3]} 21... Kh8 {[%clk 0:01:51.7]} 22.
Rae1 {[%clk 0:00:45]} 22... fxe4 {[%clk 0:01:43.9]} 23. Rxe4 {[%clk 0:00:43.3]}
23... Nf5 {[%clk 0:01:44.9]} 24. Rfe1 {[%clk 0:00:27.9]} 24... Rg8 {[%clk
0:01:43.1]} 25. h3 {[%clk 0:00:13.7]} 25... Ne5+ {[%clk 0:01:40.6]} 26. Kh2
{[%clk 0:00:13.1]} 26... Nxd3 {[%clk 0:01:41]} 27. R1e2 {[%clk 0:00:12.1]} 27...
Ng3 {[%clk 0:01:39.4]} 28. R2e3 {[%clk 0:00:06.3]} 28... Nxe4 {[%clk 0:01:39.6]}
29. Rxe4 {[%clk 0:00:06]} 29... Rbe8 {[%clk 0:01:39.5]} 0-1

[Event "*** Titled Tuesday Blitz"]
[Site "Chess.com"]
[Date "2019.10.01"]
[Round "10"]
[White "Bathory44"]
[Black "Nbk90"]
[Result "1-0"]
[WhiteElo "2612"]
[BlackElo "2477"]
[TimeControl "180+2"]
[EndTime "15:25:37 PDT"]
[Termination "Bathory44 won by resignation"]

1. e4 {[%clk 0:03:01.9]} 1... c5 {[%clk 0:02:59.7]} 2. c3 {[%clk 0:03:02.4]}
2... d5 {[%clk 0:02:54.6]} 3. exd5 {[%clk 0:03:03.4]} 3... Qxd5 {[%clk
0:02:55.2]} 4. Nf3 {[%clk 0:03:04.6]} 4... Nf6 {[%clk 0:02:55.1]} 5. d4 {[%clk
0:03:04.1]} 5... Bg4 {[%clk 0:02:54.5]} 6. dxc5 {[%clk 0:03:01.9]} 6... Qxc5
{[%clk 0:02:52.8]} 7. Na3 {[%clk 0:03:01.8]} 7... Nbd7 {[%clk 0:02:50]} 8. Be3
{[%clk 0:03:02.4]} 8... Qc8 {[%clk 0:02:47.5]} 9. h3 {[%clk 0:03:03.2]} 9... Bf5
{[%clk 0:02:47.4]} 10. Qa4 {[%clk 0:02:53.2]} 10... Be4 {[%clk 0:02:43.6]} 11.
O-O-O {[%clk 0:02:50.8]} 11... Bc6 {[%clk 0:02:38.7]} 12. Bb5 {[%clk 0:02:50.4]}
12... e6 {[%clk 0:02:37.3]} 13. Bxc6 {[%clk 0:02:36.4]} 13... Qxc6 {[%clk
0:02:35.4]} 14. Qxc6 {[%clk 0:02:36.6]} 14... bxc6 {[%clk 0:02:35.7]} 15. Nc4
{[%clk 0:02:38.1]} 15... Nd5 {[%clk 0:02:35.7]} 16. Na5 {[%clk 0:02:29.9]} 16...
Nxe3 {[%clk 0:02:34]} 17. fxe3 {[%clk 0:02:31.8]} 17... Rc8 {[%clk 0:02:33.8]}
18. Nb7 {[%clk 0:02:27.2]} 18... Nc5 {[%clk 0:02:23]} 19. Nd6+ {[%clk
0:02:04.3]} 19... Bxd6 {[%clk 0:02:22.5]} 20. Rxd6 {[%clk 0:02:06.2]} 20... Ke7
{[%clk 0:02:21.8]} 21. Rhd1 {[%clk 0:02:06.7]} 21... Rc7 {[%clk 0:02:19]} 22.
Ne5 {[%clk 0:01:58.8]} 22... Rhc8 {[%clk 0:02:18.6]} 23. b4 {[%clk 0:01:48.7]}
23... Ne4 {[%clk 0:02:16.4]} 24. Rd7+ {[%clk 0:01:49.7]} 24... Ke8 {[%clk
0:02:15.2]} 25. Rxc7 {[%clk 0:01:33.7]} 25... Rxc7 {[%clk 0:02:13.9]} 26. Kc2
{[%clk 0:01:35]} 26... f6 {[%clk 0:02:09.2]} 27. Nc4 {[%clk 0:01:28.5]} 27...
Ke7 {[%clk 0:02:08.7]} 28. a4 {[%clk 0:01:28.9]} 28... f5 {[%clk 0:02:05.6]} 29.
Ne5 {[%clk 0:01:26]} 29... g5 {[%clk 0:02:01.4]} 30. c4 {[%clk 0:01:24.2]} 30...
h5 {[%clk 0:01:59.1]} 31. c5 {[%clk 0:01:19.7]} 31... a5 {[%clk 0:01:55.1]} 32.
Kb3 {[%clk 0:01:15.3]} 32... axb4 {[%clk 0:01:52.7]} 33. Kxb4 {[%clk 0:01:16.5]}
33... Rb7+ {[%clk 0:01:48.6]} 34. Kc4 {[%clk 0:01:16.3]} 34... Kf6 {[%clk
0:01:41]} 35. Nd7+ {[%clk 0:00:55]} 35... Ke7 {[%clk 0:01:35.3]} 36. Nb6 {[%clk
0:00:55.5]} 36... Ra7 {[%clk 0:01:32.7]} 37. Nc8+ {[%clk 0:00:55.6]} 1-0

[Event "*** Titled Tuesday Blitz"]
[Site "Chess.com"]
[Date "2019.10.01"]
[Round "10"]
[White "TrenerChos"]
[Black "NemtsevIgor"]
[Result "1/2-1/2"]
[WhiteElo "2393"]
[BlackElo "2305"]
[TimeControl "180+2"]
[EndTime "15:25:39 PDT"]
[Termination "Game drawn by repetition"]

1. e4 {[%clk 0:02:33.2]} 1... c6 {[%clk 0:02:59.7]} 2. d4 {[%clk 0:02:33.4]}
2... d5 {[%clk 0:03:00.3]} 3. Nc3 {[%clk 0:02:34.7]} 3... h6 {[%clk 0:03:01.1]}
4. Nf3 {[%clk 0:02:34.1]} 4... Nf6 {[%clk 0:03:01.8]} 5. exd5 {[%clk 0:02:33.8]}
5... cxd5 {[%clk 0:03:02.5]} 6. Ne5 {[%clk 0:02:34.7]} 6... a6 {[%clk
0:03:00.7]} 7. g3 {[%clk 0:02:31.6]} 7... Bf5 {[%clk 0:02:59.2]} 8. Bg2 {[%clk
0:02:32.2]} 8... e6 {[%clk 0:03:00.2]} 9. O-O {[%clk 0:02:32.1]} 9... Nbd7
{[%clk 0:02:59.4]} 10. Ne2 {[%clk 0:02:32.4]} 10... Nxe5 {[%clk 0:02:58.9]} 11.
dxe5 {[%clk 0:02:32.5]} 11... Nd7 {[%clk 0:03:00.1]} 12. c4 {[%clk 0:02:30.6]}
12... Nb6 {[%clk 0:02:23.6]} 13. cxd5 {[%clk 0:02:27.4]} 13... Nxd5 {[%clk
0:02:24]} 14. Nd4 {[%clk 0:02:28.6]} 14... Bg6 {[%clk 0:02:20.6]} 15. Qb3 {[%clk
0:02:26.5]} 15... Bc5 {[%clk 0:02:12.2]} 16. Bxd5 {[%clk 0:02:23.2]} 16... Qxd5
{[%clk 0:02:03.4]} 17. Qxd5 {[%clk 0:02:21.7]} 17... exd5 {[%clk 0:02:04.5]} 18.
Be3 {[%clk 0:02:23.2]} 18... O-O {[%clk 0:02:00.3]} 19. f4 {[%clk 0:02:23.9]}
19... Be4 {[%clk 0:02:00.3]} 20. Rfc1 {[%clk 0:02:24]} 20... Bxd4 {[%clk
0:01:48.8]} 21. Bxd4 {[%clk 0:02:24.1]} 21... Rac8 {[%clk 0:01:50]} 22. Kf2
{[%clk 0:02:23.9]} 22... Rfd8 {[%clk 0:01:44.3]} 23. Ke3 {[%clk 0:02:22.2]}
23... Kf8 {[%clk 0:01:44.5]} 24. Bb6 {[%clk 0:02:21.8]} 24... Re8 {[%clk
0:01:42.7]} 25. b3 {[%clk 0:02:21.7]} 25... Ke7 {[%clk 0:01:36.9]} 26. Bc5+
{[%clk 0:02:20.5]} 26... Ke6 {[%clk 0:01:37.6]} 27. g4 {[%clk 0:02:17.8]} 27...
h5 {[%clk 0:01:30.8]} 28. h3 {[%clk 0:02:17.5]} 28... hxg4 {[%clk 0:01:32]} 29.
hxg4 {[%clk 0:02:17.7]} 29... Rh8 {[%clk 0:01:33]} 30. Kd4 {[%clk 0:02:05.3]}
30... g6 {[%clk 0:01:28.6]} 31. Bd6 {[%clk 0:02:00.3]} 31... Rxc1 {[%clk
0:01:10.8]} 32. Rxc1 {[%clk 0:02:00.2]} 32... Rh2 {[%clk 0:01:09.9]} 33. a4
{[%clk 0:01:56.9]} 33... Rd2+ {[%clk 0:01:09.1]} 34. Kc5 {[%clk 0:01:56.2]}
34... Rc2+ {[%clk 0:01:05.9]} 35. Rxc2 {[%clk 0:01:55.8]} 35... Bxc2 {[%clk
0:01:07.8]} 36. Kb4 {[%clk 0:01:56.6]} 36... f6 {[%clk 0:01:04]} 37. Kc3 {[%clk
0:01:56.4]} 37... Bd1 {[%clk 0:01:04.4]} 38. a5 {[%clk 0:01:56.9]} 38... fxe5
{[%clk 0:01:04.9]} 39. Bxe5 {[%clk 0:01:54.7]} 39... Bxg4 {[%clk 0:01:05.6]} 40.
Kd4 {[%clk 0:01:55.6]} 40... Be2 {[%clk 0:01:05.9]} 41. b4 {[%clk 0:01:56.6]}
41... Bc4 {[%clk 0:01:06.4]} 42. Bb8 {[%clk 0:01:57.1]} 42... Bb5 {[%clk
0:01:07.1]} 43. Kc5 {[%clk 0:01:56.6]} 43... Bc6 {[%clk 0:01:05.9]} 44. Kd4
{[%clk 0:01:56.6]} 44... Bb5 {[%clk 0:01:05]} 45. Kc5 {[%clk 0:01:57.4]} 45...
Bc6 {[%clk 0:01:06]} 46. Kd4 {[%clk 0:01:58.4]} 46... Bb5 {[%clk 0:01:07.1]}
1/2-1/2

[Event "*** Titled Tuesday Blitz"]
[Site "Chess.com"]
[Date "2019.10.01"]
[Round "10"]
[White "Keaton87"]
[Black "sergeikim"]
[Result "1-0"]
[WhiteElo "2597"]
[BlackElo "2492"]
[TimeControl "180+2"]
[EndTime "15:25:54 PDT"]
[Termination "Keaton87 won by resignation"]

1. d4 {[%clk 0:03:01.9]} 1... Nf6 {[%clk 0:03:00.2]} 2. Bg5 {[%clk 0:03:03.4]}
2... g6 {[%clk 0:03:00.7]} 3. Bxf6 {[%clk 0:03:04]} 3... exf6 {[%clk 0:03:01.9]}
4. e3 {[%clk 0:03:05.6]} 4... h5 {[%clk 0:03:02.5]} 5. h4 {[%clk 0:03:05.2]}
5... Bh6 {[%clk 0:03:00.3]} 6. g3 {[%clk 0:03:06]} 6... d6 {[%clk 0:03:00.1]} 7.
Bg2 {[%clk 0:03:07]} 7... Nd7 {[%clk 0:03:00.6]} 8. Ne2 {[%clk 0:03:08]} 8... f5
{[%clk 0:03:01.5]} 9. c4 {[%clk 0:03:07.6]} 9... Nf6 {[%clk 0:03:02.1]} 10. Nbc3
{[%clk 0:03:07.4]} 10... Ng4 {[%clk 0:03:02.6]} 11. O-O {[%clk 0:03:07.1]} 11...
O-O {[%clk 0:02:58.4]} 12. Nf4 {[%clk 0:03:07.6]} 12... c6 {[%clk 0:02:53.5]}
13. b4 {[%clk 0:03:03.4]} 13... a6 {[%clk 0:02:51.7]} 14. a4 {[%clk 0:03:03.7]}
14... Re8 {[%clk 0:02:51.1]} 15. b5 {[%clk 0:03:03.7]} 15... axb5 {[%clk
0:02:45.3]} 16. axb5 {[%clk 0:03:04.1]} 16... Rxa1 {[%clk 0:02:44.4]} 17. Qxa1
{[%clk 0:03:06]} 17... Bd7 {[%clk 0:02:42.3]} 18. Qa7 {[%clk 0:03:01.2]} 18...
Bxf4 {[%clk 0:02:07.1]} 19. exf4 {[%clk 0:03:01.4]} 19... cxb5 {[%clk
0:01:50.3]} 20. Nxb5 {[%clk 0:02:55.1]} 20... Bc6 {[%clk 0:01:37.2]} 21. d5
{[%clk 0:02:30.4]} 21... Bxb5 {[%clk 0:01:37.4]} 22. cxb5 {[%clk 0:02:32.3]}
22... Qc7 {[%clk 0:01:34.5]} 23. b6 {[%clk 0:02:30.4]} 23... Qe7 {[%clk
0:01:30.3]} 24. Bf3 {[%clk 0:02:21]} 24... Nf6 {[%clk 0:01:13.8]} 25. Rc1 {[%clk
0:02:21]} 25... Kg7 {[%clk 0:01:13.4]} 26. Kg2 {[%clk 0:02:18.6]} 26... Ng4
{[%clk 0:00:54.2]} 27. Qa1+ {[%clk 0:02:10.7]} 27... Kh7 {[%clk 0:00:53.8]} 28.
Rc7 {[%clk 0:02:11.4]} 28... Qf8 {[%clk 0:00:39.3]} 29. Bxg4 {[%clk 0:02:11.5]}
29... fxg4 {[%clk 0:00:38]} 30. Qf6 {[%clk 0:02:12.1]} 30... Kg8 {[%clk
0:00:36.5]} 31. Rxb7 {[%clk 0:02:12.6]} 31... Rb8 {[%clk 0:00:22.1]} 32. Rd7
{[%clk 0:02:12.9]} 32... Qe8 {[%clk 0:00:18.6]} 33. Re7 {[%clk 0:02:07.6]} 33...
Qf8 {[%clk 0:00:19.3]} 34. b7 {[%clk 0:02:08.3]} 34... Rd8 {[%clk 0:00:18.4]}
35. Rc7 {[%clk 0:02:04.8]} 35... Rb8 {[%clk 0:00:18.6]} 36. f5 {[%clk
0:01:47.8]} 36... gxf5 {[%clk 0:00:12.4]} 37. Qg5+ {[%clk 0:01:48.2]} 37... Kh7
{[%clk 0:00:05.6]} 38. Qxf5+ {[%clk 0:01:48.1]} 38... Kg8 {[%clk 0:00:06.2]} 39.
Rc8 {[%clk 0:01:45.6]} 1-0